[Event "Saint Louis Masters"]
[Date "2024.12.05"]
[White "Oparin, Grigoriy"]
[Black "Stremavicius, Titas"]
[WhiteElo "2653"]
[BlackElo "2567"]
[Round "5.7"]
[Result "1-0"]
[TimeControl "5400+30"]

1. e4 {[%clk 01:30:57] [%emt 00:00:02]} c5 {[%clk 01:30:50] [%emt 00:00:10]} 2.
Nf3 {[%clk 01:31:21] [%emt 00:00:07]} e6 {[%clk 01:31:13] [%emt 00:00:06]} 3. d3
{[%clk 01:31:27] [%emt 00:00:25]} Nc6 {[%clk 01:31:05] [%emt 00:00:38]} 4. g3
{[%clk 01:31:42] [%emt 00:00:15]} d5 {[%clk 01:31:09] [%emt 00:00:25]} 5. Qe2
{[%clk 01:31:52] [%emt 00:00:21]} Nge7 {[%clk 01:27:27] [%emt 00:04:11]} 6. Bg2
{[%clk 01:31:50] [%emt 00:00:32]} dxe4 {[%clk 01:27:45] [%emt 00:00:13]} 7. dxe4
{[%clk 01:32:10] [%emt 00:00:11]} Nd4 {[%clk 01:28:07] [%emt 00:00:07]} 8. Nxd4
{[%clk 01:30:49] [%emt 00:01:52]} cxd4 {[%clk 01:28:32] [%emt 00:00:05]} 9. O-O
{[%clk 01:19:42] [%emt 00:11:38]} Nc6 {[%clk 01:23:07] [%emt 00:05:53]} 10. e5
{[%clk 01:18:29] [%emt 00:01:43]} Qc7 {[%clk 01:16:24] [%emt 00:07:13]} 11. Bf4
{[%clk 01:13:27] [%emt 00:05:33]} Be7 {[%clk 01:14:05] [%emt 00:02:49]} 12. h4
{[%clk 01:12:51] [%emt 00:01:06]} O-O {[%clk 01:07:08] [%emt 00:07:26]} 13. Rd1
{[%clk 01:07:01] [%emt 00:06:20]} Rd8 {[%clk 00:57:51] [%emt 00:09:47]} 14. Nd2
{[%clk 00:52:36] [%emt 00:14:57]} Bd7 {[%clk 00:49:46] [%emt 00:08:33]} 15. Ne4
{[%clk 00:49:02] [%emt 00:04:05]} Nxe5 {[%clk 00:34:32] [%emt 00:15:43]} 16. Ng5
{[%clk 00:44:42] [%emt 00:04:51]} f6 {[%clk 00:34:20] [%emt 00:00:41]} 17. Rxd4
{[%clk 00:44:22] [%emt 00:00:51]} h6 {[%clk 00:34:21] [%emt 00:00:28]} 18. Ne4
{[%clk 00:37:50] [%emt 00:07:02]} Qa5 {[%clk 00:29:45] [%emt 00:05:07]} 19. Nc3
{[%clk 00:33:25] [%emt 00:04:55]} Bc6 {[%clk 00:24:39] [%emt 00:05:36]} 20. Bxe5
{[%clk 00:32:34] [%emt 00:01:22]} Qxe5 {[%clk 00:25:02] [%emt 00:00:07]} 21.
Qxe5 {[%clk 00:32:15] [%emt 00:00:49]} fxe5 {[%clk 00:25:28] [%emt 00:00:03]}
22. Rxd8+ {[%clk 00:32:39] [%emt 00:00:06]} Rxd8 {[%clk 00:25:36] [%emt
00:00:22]} 23. Bxc6 {[%clk 00:33:05] [%emt 00:00:05]} bxc6 {[%clk 00:25:53]
[%emt 00:00:11]} 24. Ne4 {[%clk 00:30:06] [%emt 00:03:30]} Rd4 {[%clk 00:25:04]
[%emt 00:01:18]} 25. f3 {[%clk 00:29:53] [%emt 00:00:44]} h5 {[%clk 00:23:13]
[%emt 00:02:21]} 26. Kf2 {[%clk 00:30:04] [%emt 00:00:19]} Kf7 {[%clk 00:20:29]
[%emt 00:03:13]} 27. Ke2 {[%clk 00:30:29] [%emt 00:00:07]} Bd8 {[%clk 00:20:37]
[%emt 00:00:21]} 28. a4 {[%clk 00:28:49] [%emt 00:02:10]} Ke7 {[%clk 00:20:09]
[%emt 00:00:58]} 29. b3 {[%clk 00:28:30] [%emt 00:00:50]} Rd5 {[%clk 00:19:31]
[%emt 00:01:07]} 30. c3 {[%clk 00:26:45] [%emt 00:02:15]} a5 {[%clk 00:14:00]
[%emt 00:06:00]} 31. Rb1 {[%clk 00:20:12] [%emt 00:07:05]} Bb6 {[%clk 00:12:59]
[%emt 00:01:30]} 32. b4 {[%clk 00:17:15] [%emt 00:03:27]} axb4 {[%clk 00:13:16]
[%emt 00:00:12]} 33. Rxb4 {[%clk 00:17:42] [%emt 00:00:04]} Bc7 {[%clk 00:13:37]
[%emt 00:00:09]} 34. Rc4 {[%clk 00:17:14] [%emt 00:00:58]} Kd7 {[%clk 00:13:41]
[%emt 00:00:25]} 35. g4 {[%clk 00:17:19] [%emt 00:00:26]} Bd6 {[%clk 00:09:30]
[%emt 00:04:41]} 36. gxh5 {[%clk 00:08:49] [%emt 00:09:01]} Be7 {[%clk 00:09:53]
[%emt 00:00:06]} 37. Ng3 {[%clk 00:09:14] [%emt 00:00:05]} Ra5 {[%clk 00:09:33]
[%emt 00:00:50]} 38. Rg4 {[%clk 00:09:01] [%emt 00:00:43]} Bf8 {[%clk 00:08:31]
[%emt 00:01:32]} 39. Ne4 {[%clk 00:08:49] [%emt 00:00:43]} Ra8 {[%clk 00:03:29]
[%emt 00:05:32]} 40. Nd2 {[%clk 00:09:00] [%emt 00:00:18]} Kd8 {[%clk 00:01:26]
[%emt 00:02:31]} 41. Kd3 {[%clk 00:05:33] [%emt 00:03:59]} Ra7 {[%clk 00:01:54]
[%emt 00:00:02]} 42. Nc4 {[%clk 00:02:45] [%emt 00:03:18]} Rxa4 {[%clk 00:01:40]
[%emt 00:00:44]} 43. Nxe5 {[%clk 00:03:10] [%emt 00:00:04]} Ra6 {[%clk 00:01:54]
[%emt 00:00:16]} 44. h6 {[%clk 00:01:55] [%emt 00:01:45]} gxh6 {[%clk 00:02:10]
[%emt 00:00:14]} 45. Rg8 {[%clk 00:02:21] [%emt 00:00:04]} Ke7 {[%clk 00:02:06]
[%emt 00:00:33]} 46. h5 {[%clk 00:02:48] [%emt 00:00:04]} Bg7 {[%clk 00:01:32]
[%emt 00:01:05]} 47. Rxg7+ {[%clk 00:02:58] [%emt 00:00:20]} Kf6 {[%clk
00:02:00]} 48. Rg6+ {[%clk 00:02:39] [%emt 00:00:49]} Kxe5 {[%clk 00:02:25]
[%emt 00:00:05]} 49. Rxh6 {[%clk 00:03:07] [%emt 00:00:03]} Ra1 {[%clk 00:01:06]
[%emt 00:01:49]} 50. Rh8 {[%clk 00:01:49] [%emt 00:01:48]} Rf1 {[%clk 00:00:39]
[%emt 00:00:58]} 51. Ke2 {[%clk 00:01:04] [%emt 00:01:15]} Rc1 {[%clk 00:00:37]
[%emt 00:00:31]} 52. Kd3 {[%clk 00:01:02] [%emt 00:00:32]} Rf1 {[%clk 00:01:04]
[%emt 00:00:04]} 53. Rf8 {[%clk 00:01:10] [%emt 00:00:21]} Rh1 {[%clk 00:00:52]
[%emt 00:00:42]} 54. f4+ {[%clk 00:01:35] [%emt 00:00:06]} Kd6 {[%clk 00:00:54]
[%emt 00:00:28]} 55. Rh8 {[%clk 00:02:01] [%emt 00:00:04]} Rh3+ {[%clk 00:00:56]
[%emt 00:00:28]} 56. Ke4 {[%clk 00:00:45] [%emt 00:01:46]} Ke7 {[%clk 00:01:06]
[%emt 00:00:20]} 57. h6 {[%clk 00:00:44] [%emt 00:00:31]} Kf7 {[%clk 00:01:25]
[%emt 00:00:10]} 58. c4 {[%clk 00:00:41] [%emt 00:00:33]} Kg6 {[%clk 00:00:36]
[%emt 00:01:19]} 59. h7 {[%clk 00:00:42] [%emt 00:00:29]} Rh1 {[%clk 00:00:36]
[%emt 00:00:30]} 60. Ke5 {[%clk 00:00:34] [%emt 00:00:39]} Re1+ {[%clk 00:00:40]
[%emt 00:00:26]} 61. Kd6 {[%clk 00:00:58] [%emt 00:00:06]} Re4 {[%clk 00:00:57]
[%emt 00:00:12]} 62. c5 {[%clk 00:01:15] [%emt 00:00:13]} Re3 {[%clk 01:30:30]
[%emt 00:00:24]} 1-0

[Site "Europe Echecs"]

[Event "Saint Louis Masters"]
[Date "2024.12.05"]
[White "Donchenko, Alexander"]
[Black "Nyzhnyk, Illya"]
[WhiteElo "2618"]
[BlackElo "2564"]
[Round "5.8"]
[Result "1-0"]
[TimeControl "5400+30"]

1. d4 {[%clk 01:30:40] [%emt 00:00:08]} d5 {[%clk 01:30:33] [%emt 00:00:38]} 2.
c4 {[%clk 01:30:49] [%emt 00:00:21]} c6 {[%clk 01:30:37] [%emt 00:00:26]} 3. Nf3
{[%clk 01:31:11] [%emt 00:00:07]} Nf6 {[%clk 01:31:02] [%emt 00:00:05]} 4. e3
{[%clk 01:31:08] [%emt 00:00:34]} e6 {[%clk 01:31:05] [%emt 00:00:27]} 5. Bd3
{[%clk 01:30:59] [%emt 00:00:39]} Nbd7 {[%clk 01:30:45] [%emt 00:00:50]} 6. b3
{[%clk 01:30:54] [%emt 00:00:36]} Bd6 {[%clk 01:29:04] [%emt 00:02:10]} 7. Bb2
{[%clk 01:30:51] [%emt 00:00:32]} b6 {[%clk 01:29:23] [%emt 00:00:12]} 8. O-O
{[%clk 01:29:51] [%emt 00:01:30]} Bb7 {[%clk 01:29:45] [%emt 00:00:07]} 9. Nc3
{[%clk 01:28:24] [%emt 00:01:58]} O-O {[%clk 01:29:43] [%emt 00:00:32]} 10. Qc2
{[%clk 01:28:05] [%emt 00:00:49]} h6 {[%clk 01:15:58] [%emt 00:14:15]} 11. Rad1
{[%clk 01:22:58] [%emt 00:05:36]} dxc4 {[%clk 00:46:39] [%emt 00:29:50]} 12.
bxc4 {[%clk 01:21:42] [%emt 00:01:46]} c5 {[%clk 00:38:41] [%emt 00:08:28]} 13.
d5 {[%clk 01:20:25] [%emt 00:01:47]} exd5 {[%clk 00:39:06] [%emt 00:00:05]} 14.
Nxd5 {[%clk 01:18:48] [%emt 00:02:08]} Re8 {[%clk 00:39:01] [%emt 00:00:35]} 15.
e4 {[%clk 01:16:21] [%emt 00:02:56]} Bxd5 {[%clk 00:29:19] [%emt 00:10:12]} 16.
cxd5 {[%clk 01:15:31] [%emt 00:01:19]} a6 {[%clk 00:29:46] [%emt 00:00:04]} 17.
a4 {[%clk 01:05:15] [%emt 00:10:47]} Qc7 {[%clk 00:24:21] [%emt 00:05:55]} 18.
Rfe1 {[%clk 00:54:43] [%emt 00:11:02]} c4 {[%clk 00:24:05] [%emt 00:00:45]} 19.
Bxc4 {[%clk 00:43:47] [%emt 00:11:26]} Rac8 {[%clk 00:22:55] [%emt 00:01:40]}
20. Rc1 {[%clk 00:44:07] [%emt 00:00:11]} Bf4 {[%clk 00:18:06] [%emt 00:05:18]}
21. d6 {[%clk 00:43:40] [%emt 00:00:57]} Qxd6 {[%clk 00:15:17] [%emt 00:03:19]}
22. e5 {[%clk 00:39:21] [%emt 00:04:50]} Qb4 {[%clk 00:15:44] [%emt 00:00:03]}
23. exf6 {[%clk 00:33:51] [%emt 00:06:00]} Bxc1 {[%clk 00:16:09] [%emt
00:00:04]} 24. Rxe8+ {[%clk 00:32:56] [%emt 00:01:26]} Rxe8 {[%clk 00:16:38]}
25. Qxc1 {[%clk 00:33:17] [%emt 00:00:09]} b5 {[%clk 00:10:57] [%emt 00:06:11]}
26. axb5 {[%clk 00:32:56] [%emt 00:00:50]} axb5 {[%clk 00:11:22] [%emt
00:00:05]} 27. Bf1 {[%clk 00:31:38] [%emt 00:01:48]} gxf6 {[%clk 00:10:51] [%emt
00:01:01]} 28. h3 {[%clk 00:27:54] [%emt 00:04:14]} 1-0

[Site "Europe Echecs"]

[Event "Saint Louis Masters"]
[Date "2024.12.05"]
[White "Antipov, Mikhail Al."]
[Black "Kantor, Gergely"]
[WhiteElo "2594"]
[BlackElo "2550"]
[Round "5.9"]
[Result "0-1"]
[TimeControl "5400+30"]

1. e4 {[%clk 01:30:56] [%emt 00:00:03]} e5 {[%clk 01:30:58] [%emt 00:00:03]} 2.
Nf3 {[%clk 01:31:21] [%emt 00:00:05]} Nc6 {[%clk 01:31:23] [%emt 00:00:05]} 3.
Bc4 {[%clk 01:31:47] [%emt 00:00:04]} Nf6 {[%clk 01:31:50] [%emt 00:00:03]} 4.
d3 {[%clk 01:32:11] [%emt 00:00:06]} Bc5 {[%clk 01:32:17] [%emt 00:00:03]} 5.
O-O {[%clk 01:32:34] [%emt 00:00:07]} O-O {[%clk 01:32:41] [%emt 00:00:07]} 6.
Nbd2 {[%clk 01:33:00] [%emt 00:00:03]} d6 {[%clk 01:32:51] [%emt 00:00:20]} 7.
c3 {[%clk 01:33:25] [%emt 00:00:05]} a5 {[%clk 01:33:06] [%emt 00:00:15]} 8. h3
{[%clk 01:33:51] [%emt 00:00:03]} Be6 {[%clk 01:32:53] [%emt 00:00:43]} 9. Bb5
{[%clk 01:34:15] [%emt 00:00:07]} Ba7 {[%clk 01:33:11] [%emt 00:00:12]} 10. Re1
{[%clk 01:34:37] [%emt 00:00:08]} Ne7 {[%clk 01:33:30] [%emt 00:00:11]} 11. Ba4
{[%clk 01:34:15] [%emt 00:00:52]} Ng6 {[%clk 01:32:12] [%emt 00:01:47]} 12. d4
{[%clk 01:34:14] [%emt 00:00:32]} Nh5 {[%clk 01:31:51] [%emt 00:00:50]} 13. Nf1
{[%clk 01:33:17] [%emt 00:01:27]} Nhf4 {[%clk 01:31:54] [%emt 00:00:28]} 14. Bc2
{[%clk 01:33:32] [%emt 00:00:14]} Qd7 {[%clk 01:10:56] [%emt 00:21:29]} 15. h4
{[%clk 01:33:06] [%emt 00:00:56]} f5 {[%clk 01:02:52] [%emt 00:08:34]} 16. d5
{[%clk 01:10:55] [%emt 00:22:41]} Bf7 {[%clk 00:54:05] [%emt 00:09:17]} 17. exf5
{[%clk 01:10:58] [%emt 00:00:27]} Bxd5 {[%clk 00:48:19] [%emt 00:06:16]} 18. Ne3
{[%clk 00:36:52] [%emt 00:34:37]} Bc6 {[%clk 00:31:41] [%emt 00:17:08]} 19. fxg6
{[%clk 00:11:01] [%emt 00:26:20]} Nh3+ {[%clk 00:31:20] [%emt 00:00:51]} 20. Kf1
{[%clk 00:09:55] [%emt 00:01:36]} e4 {[%clk 00:29:23] [%emt 00:02:27]} 21. Ba4
{[%clk 00:03:18] [%emt 00:07:07]} b5 {[%clk 00:21:49] [%emt 00:08:04]} 22. Bb3+
{[%clk 00:02:02] [%emt 00:01:46]} Kh8 {[%clk 00:21:53] [%emt 00:00:26]} 23. Bd5
{[%clk 00:02:28] [%emt 00:00:04]} Bxd5 {[%clk 00:19:27] [%emt 00:02:56]} 24.
Qxd5 {[%clk 00:02:07] [%emt 00:00:51]} exf3 {[%clk 00:19:36] [%emt 00:00:20]}
25. Nd1 {[%clk 00:01:08] [%emt 00:01:29]} fxg2+ {[%clk 00:18:31] [%emt
00:01:35]} 26. Kxg2 {[%clk 00:01:33] [%emt 00:00:06]} Qg4+ {[%clk 00:18:31]
[%emt 00:00:30]} 0-1

[Site "Europe Echecs"]

[Event "Saint Louis Masters"]
[Date "2024.12.05"]
[White "Dudin, Gleb"]
[Black "Bok, Benjamin"]
[WhiteElo "2506"]
[BlackElo "2593"]
[Round "5.10"]
[Result "1/2-1/2"]
[TimeControl "5400+30"]

1. c4 {[%clk 01:24:16] [%emt 00:06:42]} Nf6 {[%clk 01:28:32] [%emt 00:02:29]} 2.
Nc3 {[%clk 01:24:01] [%emt 00:00:45]} e5 {[%clk 01:27:14] [%emt 00:01:48]} 3.
Nf3 {[%clk 01:22:35] [%emt 00:01:56]} Nc6 {[%clk 01:27:38] [%emt 00:00:06]} 4.
e3 {[%clk 01:22:56] [%emt 00:00:09]} Be7 {[%clk 01:23:06] [%emt 00:05:02]} 5. a3
{[%clk 01:19:42] [%emt 00:03:44]} d5 {[%clk 01:18:21] [%emt 00:05:15]} 6. cxd5
{[%clk 01:19:38] [%emt 00:00:34]} Nxd5 {[%clk 01:18:49] [%emt 00:00:02]} 7. Qc2
{[%clk 01:19:23] [%emt 00:00:45]} O-O {[%clk 01:07:19] [%emt 00:12:01]} 8. Nxd5
{[%clk 01:18:05] [%emt 00:01:48]} Qxd5 {[%clk 01:07:42] [%emt 00:00:07]} 9. Bd3
{[%clk 01:18:22] [%emt 00:00:12]} Kh8 {[%clk 00:57:38] [%emt 00:10:35]} 10. b4
{[%clk 01:04:03] [%emt 00:14:49]} f5 {[%clk 00:55:18] [%emt 00:02:50]} 11. Bc4
{[%clk 00:56:21] [%emt 00:08:12]} Qd6 {[%clk 00:55:14] [%emt 00:00:34]} 12. h4
{[%clk 00:55:40] [%emt 00:01:11]} e4 {[%clk 00:44:07] [%emt 00:11:37]} 13. Ng5
{[%clk 00:55:59] [%emt 00:00:11]} Qh6 {[%clk 00:42:52] [%emt 00:01:45]} 14. Nh3
{[%clk 00:44:34] [%emt 00:11:55]} a5 {[%clk 00:30:57] [%emt 00:12:26]} 15. b5
{[%clk 00:42:50] [%emt 00:02:13]} Ne5 {[%clk 00:31:23] [%emt 00:00:03]} 16. Bb2
{[%clk 00:41:55] [%emt 00:01:24]} Bf6 {[%clk 00:31:27] [%emt 00:00:26]} 17. Be2
{[%clk 00:38:18] [%emt 00:04:07]} Be6 {[%clk 00:31:05] [%emt 00:00:53]} 18. Nf4
{[%clk 00:33:45] [%emt 00:05:03]} Bf7 {[%clk 00:31:22] [%emt 00:00:13]} 19. Rh3
{[%clk 00:31:07] [%emt 00:03:07]} a4 {[%clk 00:28:08] [%emt 00:03:45]} 20. Rc1
{[%clk 00:31:01] [%emt 00:00:36]} c6 {[%clk 00:23:58] [%emt 00:04:40]} 21. h5
{[%clk 00:23:48] [%emt 00:07:41]} Kg8 {[%clk 00:18:37] [%emt 00:05:52]} 22. Ba1
{[%clk 00:20:45] [%emt 00:03:33]} Rfd8 {[%clk 00:12:04] [%emt 00:07:04]} 1/2-1/2

[Site "Europe Echecs"]

[Event "Saint Louis Masters"]
[Date "2024.12.05"]
[White "Caruana, Fabiano"]
[Black "Cordova, Emilio"]
[WhiteElo "2805"]
[BlackElo "2531"]
[Round "6.1"]
[Result "1-0"]
[TimeControl "5400+30"]

1. e4 {[%clk 01:30:48] [%emt 00:00:11]} c5 {[%clk 01:24:59] [%emt 00:06:01]} 2.
Nf3 {[%clk 01:31:13] [%emt 00:00:06]} Nc6 {[%clk 01:24:12] [%emt 00:01:16]} 3.
Bb5 {[%clk 01:31:36] [%emt 00:00:07]} e6 {[%clk 01:23:58] [%emt 00:00:44]} 4.
O-O {[%clk 01:31:54] [%emt 00:00:12]} Nge7 {[%clk 01:24:11] [%emt 00:00:17]} 5.
Re1 {[%clk 01:32:14] [%emt 00:00:10]} Nd4 {[%clk 01:22:02] [%emt 00:02:39]} 6.
Nxd4 {[%clk 01:32:11] [%emt 00:00:33]} cxd4 {[%clk 01:22:26] [%emt 00:00:05]} 7.
d3 {[%clk 01:31:34] [%emt 00:01:09]} Nc6 {[%clk 01:22:17] [%emt 00:00:38]} 8.
Nd2 {[%clk 01:28:52] [%emt 00:03:13]} a6 {[%clk 01:21:28] [%emt 00:01:19]} 9.
Ba4 {[%clk 01:23:30] [%emt 00:05:52]} b5 {[%clk 01:21:37] [%emt 00:00:20]} 10.
Bb3 {[%clk 01:23:57] [%emt 00:00:04]} Bb7 {[%clk 01:21:46] [%emt 00:00:20]} 11.
Qh5 {[%clk 01:19:50] [%emt 00:04:37]} Qf6 {[%clk 01:09:17] [%emt 00:12:59]} 12.
a4 {[%clk 01:00:48] [%emt 00:19:33]} Qg6 {[%clk 01:07:56] [%emt 00:01:50]} 13.
Qh3 {[%clk 01:01:09] [%emt 00:00:10]} h5 {[%clk 01:03:56] [%emt 00:04:29]} 14.
f4 {[%clk 00:54:03] [%emt 00:07:36]} Qg4 {[%clk 01:03:55] [%emt 00:00:31]} 15.
Qf3 {[%clk 00:53:59] [%emt 00:00:34]} Qxf3 {[%clk 00:59:05] [%emt 00:05:20]} 16.
Nxf3 {[%clk 00:54:25] [%emt 00:00:04]} Bb4 {[%clk 00:51:53] [%emt 00:07:43]} 17.
Bd2 {[%clk 00:54:50] [%emt 00:00:05]} Bxd2 {[%clk 00:52:02] [%emt 00:00:21]} 18.
Nxd2 {[%clk 00:55:17] [%emt 00:00:03]} Kd8 {[%clk 00:40:59] [%emt 00:11:32]} 19.
Nf3 {[%clk 00:53:24] [%emt 00:02:23]} Kc7 {[%clk 00:40:58] [%emt 00:00:31]} 20.
Kf2 {[%clk 00:53:41] [%emt 00:00:13]} Kb6 {[%clk 00:40:07] [%emt 00:01:22]} 21.
c3 {[%clk 00:49:20] [%emt 00:04:51]} dxc3 {[%clk 00:40:03] [%emt 00:00:34]} 22.
bxc3 {[%clk 00:49:46] [%emt 00:00:04]} f6 {[%clk 00:23:34] [%emt 00:16:58]} 23.
Reb1 {[%clk 00:45:58] [%emt 00:04:18]} Kc7 {[%clk 00:23:19] [%emt 00:00:46]} 24.
Bd1 {[%clk 00:42:00] [%emt 00:04:28]} bxa4 {[%clk 00:17:12] [%emt 00:06:38]} 25.
Rxa4 {[%clk 00:42:18] [%emt 00:00:11]} g6 {[%clk 00:16:47] [%emt 00:00:55]} 26.
Be2 {[%clk 00:40:10] [%emt 00:02:38]} Rhb8 {[%clk 00:13:35] [%emt 00:03:39]} 27.
Rba1 {[%clk 00:40:22] [%emt 00:00:19]} Bc8 {[%clk 00:10:04] [%emt 00:04:00]} 28.
Ke3 {[%clk 00:32:31] [%emt 00:08:23]} Rb2 {[%clk 00:10:12] [%emt 00:00:21]} 29.
Rc4 {[%clk 00:31:47] [%emt 00:01:14]} Kd8 {[%clk 00:04:13] [%emt 00:06:28]} 30.
Rc5 {[%clk 00:24:54] [%emt 00:07:24]} Rab8 {[%clk 00:03:47] [%emt 00:00:57]} 31.
d4 {[%clk 00:24:42] [%emt 00:00:42]} Ne7 {[%clk 00:03:48] [%emt 00:00:29]} 32.
g3 {[%clk 00:21:28] [%emt 00:03:45]} f5 {[%clk 00:03:35] [%emt 00:00:42]} 33. e5
{[%clk 00:10:17] [%emt 00:11:41]} Bb7 {[%clk 00:03:29] [%emt 00:00:36]} 34. Nd2
{[%clk 00:10:14] [%emt 00:00:33]} Be4 {[%clk 00:02:39] [%emt 00:01:20]} 35. Bc4
{[%clk 00:06:03] [%emt 00:04:42]} Rc2 {[%clk 00:02:14] [%emt 00:00:55]} 36. Nxe4
{[%clk 00:06:30] [%emt 00:00:04]} fxe4 {[%clk 00:02:40] [%emt 00:00:03]} 37.
Kxe4 {[%clk 00:06:57] [%emt 00:00:03]} Rxh2 {[%clk 00:02:12] [%emt 00:00:58]}
38. Rxa6 {[%clk 00:06:10] [%emt 00:01:17]} Rh3 {[%clk 00:01:48] [%emt 00:00:53]}
39. Bxe6 {[%clk 00:05:18] [%emt 00:01:23]} dxe6 {[%clk 00:02:05] [%emt
00:00:12]} 40. Rd6+ {[%clk 00:05:45] [%emt 00:00:03]} Ke8 {[%clk 00:02:30] [%emt
00:00:05]} 41. Rxe6 {[%clk 00:06:12] [%emt 00:00:04]} Kd8 {[%clk 00:00:58] [%emt
00:02:02]} 42. d5 {[%clk 00:04:25] [%emt 00:02:17]} Rxg3 {[%clk 00:01:04] [%emt
00:00:23]} 43. d6 {[%clk 00:04:50] [%emt 00:00:05]} Rb7 {[%clk 00:00:38] [%emt
00:00:57]} 44. Rf6 {[%clk 00:04:38] [%emt 00:00:41]} Ke8 {[%clk 00:00:33] [%emt
00:00:36]} 45. e6 {[%clk 00:04:41] [%emt 00:00:27]} Rg1 {[%clk 00:00:44] [%emt
00:00:19]} 46. d7+ {[%clk 00:04:05] [%emt 00:01:06]} Rxd7 {[%clk 00:01:09] [%emt
00:00:05]} 47. exd7+ {[%clk 00:04:33] [%emt 00:00:03]} Kxd7 {[%clk 00:01:34]
[%emt 00:00:04]} 48. Ra5 {[%clk 00:04:56] [%emt 00:00:06]} h4 {[%clk 00:01:28]
[%emt 00:00:38]} 49. Rf7 {[%clk 00:03:21] [%emt 00:02:05]} Ke6 {[%clk 00:01:33]
[%emt 00:00:24]} 50. Rh7 {[%clk 00:03:48] [%emt 00:00:03]} Nf5 {[%clk 00:00:39]
[%emt 00:01:24]} 51. Ra6+ {[%clk 00:04:15] [%emt 00:00:04]} Nd6+ {[%clk
00:01:05] [%emt 00:00:04]} 52. Kd4 {[%clk 00:04:43] [%emt 00:00:02]} Rd1+ {[%clk
00:01:16] [%emt 00:00:19]} 53. Kc5 {[%clk 00:04:22] [%emt 00:00:50]} Rd5+ {[%clk
00:01:41] [%emt 00:00:05]} 54. Kb4 {[%clk 00:03:33] [%emt 00:01:20]} Rb5+ {[%clk
00:01:50] [%emt 00:00:21]} 55. Ka3 {[%clk 00:03:18] [%emt 00:00:45]} Rh5 {[%clk
00:00:48] [%emt 00:01:32]} 56. Rxh5 {[%clk 00:03:42] [%emt 00:00:07]} gxh5
{[%clk 00:01:14] [%emt 00:00:04]} 57. Kb4 {[%clk 00:03:02] [%emt 00:01:10]} Kd5
{[%clk 00:00:48] [%emt 00:00:56]} 58. Ra5+ {[%clk 00:01:40] [%emt 00:01:52]} Ke4
{[%clk 00:01:13] [%emt 00:00:05]} 59. Rxh5 {[%clk 00:01:27] [%emt 00:00:43]} Nf5
{[%clk 00:01:39] [%emt 00:00:04]} 60. c4 {[%clk 00:01:53] [%emt 00:00:04]} Kxf4
{[%clk 00:02:07] [%emt 00:00:02]} 61. c5 {[%clk 00:02:20] [%emt 00:00:03]} Kg4
{[%clk 00:02:29] [%emt 00:00:07]} 62. Rh7 {[%clk 00:02:26] [%emt 00:00:25]} h3
{[%clk 00:02:10] [%emt 00:00:49]} 63. c6 {[%clk 00:02:48] [%emt 00:00:09]} Kg3
{[%clk 00:02:18] [%emt 00:00:22]} 64. c7 {[%clk 00:02:50] [%emt 00:00:28]} Nd6
{[%clk 00:02:23] [%emt 00:00:25]} 65. Kc5 {[%clk 00:02:55] [%emt 00:00:25]} Nc8
{[%clk 00:02:33] [%emt 00:00:21]} 66. Rh8 {[%clk 00:03:10] [%emt 00:00:14]} h2
{[%clk 00:02:19] [%emt 00:00:43]} 67. Rxc8 {[%clk 00:03:32] [%emt 00:00:09]}
h1=Q {[%clk 00:02:42] [%emt 00:00:06]} 68. Rg8+ {[%clk 00:04:00] [%emt
00:00:02]} Kf2 {[%clk 00:02:41] [%emt 00:00:31]} 69. Rf8+ {[%clk 00:03:54] [%emt
00:00:36]} Ke2 {[%clk 00:01:30] [%emt 00:01:41]} 70. c8=Q {[%clk 00:04:12] [%emt
00:00:12]} Qc1+ {[%clk 00:01:55] [%emt 00:00:05]} 71. Kd6 {[%clk 00:04:30] [%emt
00:00:13]} Qd2+ {[%clk 00:02:15] [%emt 00:00:09]} 72. Ke7 {[%clk 00:03:22] [%emt
00:01:39]} Qb4+ {[%clk 00:02:39] [%emt 00:00:06]} 73. Kf6 {[%clk 00:03:31] [%emt
00:00:21]} Qd4+ {[%clk 00:02:03] [%emt 00:01:06]} 74. Kg6 {[%clk 00:03:56] [%emt
00:00:05]} Qg1+ {[%clk 00:01:47] [%emt 00:00:45]} 75. Kh5 {[%clk 00:04:23] [%emt
00:00:03]} Qh2+ {[%clk 00:01:09] [%emt 00:01:09]} 76. Kg5 {[%clk 00:04:47] [%emt
00:00:05]} Qe5+ {[%clk 00:00:46] [%emt 00:00:53]} 77. Qf5 {[%clk 00:05:13] [%emt
00:00:04]} Qg7+ {[%clk 00:01:04] [%emt 00:00:13]} 78. Kh5 {[%clk 00:05:39] [%emt
00:00:03]} 1-0

[Site "Europe Echecs"]

[Event "Saint Louis Masters"]
[Date "2024.12.05"]
[White "Can, Isik"]
[Black "Oparin, Grigoriy"]
[WhiteElo "2499"]
[BlackElo "2653"]
[Round "6.2"]
[Result "1/2-1/2"]
[TimeControl "5400+30"]

1. e4 {[%clk 01:30:23] [%emt 00:00:36]} e5 {[%clk 01:30:50] [%emt 00:00:11]} 2.
Nf3 {[%clk 01:30:45] [%emt 00:00:07]} Nc6 {[%clk 01:31:16] [%emt 00:00:05]} 3.
Nc3 {[%clk 01:31:09] [%emt 00:00:06]} Nf6 {[%clk 01:31:26] [%emt 00:00:20]} 4.
d4 {[%clk 01:31:31] [%emt 00:00:08]} exd4 {[%clk 01:31:16] [%emt 00:00:41]} 5.
Nxd4 {[%clk 01:31:55] [%emt 00:00:06]} Bb4 {[%clk 01:31:42] [%emt 00:00:04]} 6.
Nxc6 {[%clk 01:32:14] [%emt 00:00:11]} bxc6 {[%clk 01:32:06] [%emt 00:00:06]} 7.
Bd3 {[%clk 01:32:38] [%emt 00:00:05]} O-O {[%clk 01:32:17] [%emt 00:00:20]} 8.
O-O {[%clk 01:33:00] [%emt 00:00:08]} d5 {[%clk 01:32:42] [%emt 00:00:05]} 9.
Bd2 {[%clk 01:31:25] [%emt 00:02:05]} Bxc3 {[%clk 01:27:07] [%emt 00:06:05]} 10.
Bxc3 {[%clk 01:31:45] [%emt 00:00:09]} dxe4 {[%clk 01:27:30] [%emt 00:00:08]}
11. Bxf6 {[%clk 01:32:06] [%emt 00:00:09]} Qxf6 {[%clk 01:27:55] [%emt
00:00:05]} 12. Bxe4 {[%clk 01:32:32] [%emt 00:00:04]} Qxb2 {[%clk 01:28:06]
[%emt 00:00:19]} 13. Bxc6 {[%clk 01:32:57] [%emt 00:00:05]} Rb8 {[%clk 01:28:31]
[%emt 00:00:04]} 14. Rb1 {[%clk 01:33:22] [%emt 00:00:05]} Qxb1 {[%clk 01:28:55]
[%emt 00:00:06]} 15. Qxb1 {[%clk 01:33:48] [%emt 00:00:04]} Rxb1 {[%clk
01:29:21] [%emt 00:00:04]} 16. Rxb1 {[%clk 01:34:12] [%emt 00:00:06]} Rd8 {[%clk
01:29:42] [%emt 00:00:09]} 1/2-1/2

[Site "Europe Echecs"]